bitfinex/quotes_SOLUSD_20260211
["timestamp","ask_amount","ask_price","bid_price","bid_amount"]
[1770835410172,1.36477864,79.832,79.788,12.63970751]
[1770835411175,1.36477864,79.83,79.789,0.10410056]
[1770835411357,1.36477864,79.83,79.791,0.10410056]
[1770835411757,1.36477864,79.83,79.788,12.53321301]
[1770835412176,1.36477864,79.827,79.788,12.53321301]
[1770835412469,1.36477864,79.827,79.788,12.63615621]
[1770835412981,1.36477864,79.827,79.789,0.10179918]
[1770835413659,1.36477864,79.825,79.789,0.10179918]
[1770835414577,12.52787452,79.822,79.789,0.10179918]
[1770835414881,1.36477864,79.821,79.789,0.10179918]
[1770835417160,1.36477864,79.827,79.791,0.09728904]
[1770835419186,1.36477864,79.825,79.791,0.09728904]
[1770835422784,1.36477864,79.823,79.788,12.53321301]
[1770835422959,1.36477864,79.823,79.773,0.09096372]
[1770835423163,1.36477864,79.823,79.774,52.22]
[1770835423578,5.36086188,79.814,79.774,64.75541254]
[1770835423779,1.36477864,79.813,79.774,64.75541254]
[1770835423978,1.36477864,79.81,79.774,64.75541254]
[1770835424173,1.36477864,79.81,79.774,12.53541254]
[1770835424366,1.36477864,79.81,79.775,52.22]
[1770835425070,1.36477864,79.807,79.776,12.53509827]
[1770835426892,30.0,79.809,79.78,12.94396504]
[1770835427071,13.89419839,79.813,79.782,0.08692917]
[1770835427793,1.36477864,79.828,79.791,0.08692917]
[1770835427963,1.36477864,79.828,79.792,52.34594796]
[1770835428291,1.36477864,79.828,79.793,0.08594796]
[1770835429596,1.36477864,79.828,79.793,12.61740982]
[1770835429899,1.36477864,79.826,79.794,0.08402457]
[1770835430107,1.36477864,79.842,79.794,0.08402457]
[1770835430475,1.31591438,79.838,79.793,12.53242765]
[1770835430671,1.31591438,79.834,79.793,12.53242765]
[1770835430988,1.31591438,79.848,79.801,0.0821461]
[1770835431179,1.31591438,79.855,79.821,0.0821461]
[1770835431373,1.31591438,79.855,79.823,0.0821461]
[1770835431689,1.31591438,79.853,79.825,0.0821461]
[1770835432384,5.36086188,79.872,79.825,0.0821461]
[1770835432385,1.31591438,79.867,79.83,12.94396504]
[1770835432687,1.31591438,79.867,79.832,0.0812291]
[1770835434591,1.31591438,79.863,79.826,12.52721183]
[1770835434793,1.31591438,79.863,79.827,52.32]
[1770835436890,5.36086188,79.86,79.827,52.32]
[1770835437088,1.31591438,79.853,79.827,52.32]
[1770835439012,1.31591438,79.851,79.827,52.32]
[1770835439295,1.31591438,79.857,79.828,0.07511722]
[1770835440406,1.31591438,79.853,79.817,12.52857801]
[1770835440705,1.31591438,79.853,79.817,64.84857801]
[1770835441703,1.31591438,79.853,79.818,0.0734474]
[1770835441998,43.828892,79.856,79.82,4.82729136]
[1770835441999,12.52254057,79.856,79.82,4.82729136]
[1770835442207,13.83793797,79.86,79.821,0.07264889]
[1770835442412,13.83793797,79.86,79.824,0.07264889]
[1770835444305,1.31591438,79.859,79.824,0.07264889]
[1770835445710,13.83709697,79.865,79.831,0.07023299]
[1770835445899,1.31591438,79.881,79.831,0.07023299]
[1770835446107,12.51787816,79.886,79.851,0.06944964]
[1770835446287,12.51787816,79.886,79.853,0.06944964]
[1770835446608,1.31591438,79.885,79.853,0.06944964]
[1770835446802,1.31591438,79.885,79.852,52.34]
[1770835447016,1.31591438,79.883,79.852,52.34]
[1770835447812,1.31591438,79.881,79.852,52.34]
[1770835448403,1.31591438,79.881,79.853,12.52301103]
[1770835448611,1.31591438,79.881,79.852,52.34]
[1770835450117,1.31591438,79.88,79.853,0.06643734]
[1770835450599,12.51807456,79.885,79.853,0.06643734]
[1770835450916,13.83398894,79.885,79.853,0.06643734]
[1770835451216,31.29050808,79.897,79.853,0.06643734]
[1770835451217,1.31591438,79.884,79.853,0.06643734]
[1770835451398,13.8332741,79.89,79.853,0.06643734]
[1770835451793,1.31591438,79.889,79.853,0.06643734]
[1770835452419,1.31591438,79.887,79.852,52.34]
[1770835452606,1.31591438,79.883,79.852,52.34]
[1770835452915,1.31591438,79.883,79.853,12.52301103]
[1770835453319,1.31591438,79.883,79.852,52.40421824]
[1770835453617,1.31591438,79.883,79.853,12.52301103]
[1770835453815,1.31591438,79.883,79.854,0.06421824]
[1770835454594,1.31591438,79.881,79.854,0.06421824]
[1770835455818,1.31591438,79.887,79.854,0.06421824]
[1770835457397,1.31591438,79.883,79.852,52.34]
[1770835459201,1.31591438,79.883,79.854,0.06005335]
[1770835459408,13.83432131,79.883,79.854,0.06005335]
[1770835459611,1.31591438,79.882,79.841,12.58494657]
[1770835459811,1.31591438,79.882,79.846,52.42]
[1770835462619,1.31591438,79.88,79.847,12.58137634]
[1770835463011,1.31591438,79.88,79.847,12.52395205]
[1770835463324,1.31591438,79.88,79.848,0.05678873]
[1770835465224,12.51893488,79.879,79.848,0.05678873]
[1770835465525,1.31591438,79.878,79.848,0.05678873]
[1770835466214,1.31591438,79.878,79.846,52.42]
[1770835466726,1.31591438,79.878,79.847,12.52395205]
[1770835468522,50.05906714,79.906,79.846,52.42]
[1770835468523,1.31591438,79.874,79.846,52.42]
[1770835469522,1.31591438,79.872,79.846,52.42]
[1770835470423,1.31591438,79.872,79.84,12.52504883]
[1770835472122,1.31591438,79.87,79.837,0.05194751]
[1770835474628,1.31591438,79.868,79.837,0.05194751]
[1770835476628,1.31591438,79.866,79.837,0.05194751]
[1770835478824,12.5211294,79.865,79.837,0.05194751]
[1770835479031,1.31591438,79.864,79.837,0.05194751]
[1770835479434,1.31591438,79.872,79.837,0.05194751]
[1770835480324,12.5201888,79.871,79.837,0.05194751]
[1770835480506,1.31591438,79.87,79.837,0.05194751]
[1770835481239,1.31591438,79.879,79.861,0.04597965]
[1770835481531,1.31591438,79.879,79.863,0.04597965]
[1770835481831,12.51909161,79.878,79.841,0.04597965]
[1770835482020,12.51909161,79.878,79.851,52.48]
[1770835482221,43.81682064,79.878,79.851,52.48]
[1770835482528,5.36086188,79.877,79.832,12.52617467]
[1770835482719,5.36086188,79.877,79.834,0.0454761]
[1770835483530,1.31591438,79.874,79.836,0.04499701]
[1770835484214,1.31591438,79.872,79.837,0.04450279]
[1770835486412,1.31591438,79.87,79.837,0.04450279]
[1770835486722,13.83557205,79.875,79.837,0.04450279]
[1770835487142,1.31591438,79.874,79.837,0.04450279]
[1770835487830,5.36086188,79.894,79.851,0.04306359]
[1770835488131,1.31591438,79.893,79.853,0.04259309]
[1770835488439,1.31591438,79.891,79.854,0.04259309]
[1770835488623,1.31591438,79.891,79.855,0.04259309]
[1770835490020,1.31591438,79.883,79.847,12.52380662]
[1770835490741,1.31591438,79.881,79.847,12.56503715]
[1770835491039,1.31591438,79.881,79.847,12.52380662]
[1770835491222,1.31591438,79.881,79.848,0.04078523]
[1770835493742,1.31591438,79.879,79.848,12.56458044]
[1770835494439,1.31591438,79.879,79.85,4.82630791]
[1770835494640,1.31591438,79.877,79.851,0.03945493]
[1770835495136,1.31591438,79.877,79.85,4.82630791]
[1770835495332,1.31591438,79.877,79.846,0.03902651]
[1770835496624,1.31591438,79.875,79.847,12.56243794]
[1770835497238,1.31591438,79.875,79.848,0.03817144]
[1770835500364,1.31591438,79.89,79.851,0.03694785]
[1770835500657,1.31591438,79.883,79.849,52.54]
[1770835501149,1.31591438,79.883,79.835,31.31448799]
[1770835501150,5.36086188,79.876,79.817,0.0365684]
[1770835501439,1.31591438,79.87,79.841,0.0365684]
[1770835501642,1.31591438,79.876,79.851,0.0365684]
[1770835501831,1.31591438,79.876,79.841,0.0365684]
[1770835502624,1.31591438,79.874,79.841,0.0365684]
[1770835502822,1.31591438,79.874,79.842,0.03615716]
[1770835503522,1.31591438,79.874,79.851,0.03574937]
[1770835503727,1.31591438,79.881,79.851,0.03574937]
[1770835504144,12.51830085,79.884,79.841,43.83712628]
[1770835504145,47.88,79.893,79.861,0.03534583]
[1770835504331,12.51575046,79.9,79.88,4.82630791]
[1770835504641,1.31591438,79.908,79.88,4.82630791]
[1770835504642,1.31591438,79.904,79.881,0.03534583]
[1770835505227,30.0,79.882,79.881,0.03534583]
[1770835505943,30.0,79.882,79.871,0.03495888]
[1770835506746,1.31591438,79.881,79.865,12.52102913]
[1770835507030,1.31591438,79.874,79.843,12.52442431]
[1770835507224,5.36086188,79.869,79.832,52.52]
[1770835507438,1.31591438,79.864,79.823,0.03418889]
[1770835507634,1.31591438,79.854,79.814,12.52913022]
[1770835507838,1.31591438,79.854,79.81,4.82630791]
[1770835507839,30.0,79.847,79.81,17.35594456]
[1770835508147,1.31591438,79.846,79.81,17.35594456]
[1770835508347,30.0,79.847,79.82,4.82630791]
[1770835508348,1.31591438,79.844,79.82,4.82630791]
[1770835508644,30.0,79.847,79.821,0.03382121]
[1770835508845,30.0,79.839,79.821,0.03382121]
[1770835510337,1.31591438,79.854,79.83,4.82630791]
[1770835510537,13.8388356,79.854,79.828,0.03312154]
[1770835510754,12.52292122,79.854,79.828,0.03312154]
[1770835510945,1.31591438,79.853,79.828,0.03312154]
[1770835511345,1.31591438,79.853,79.822,0.03275376]
[1770835511547,1.31591438,79.853,79.816,52.54]
[1770835511846,1.31591438,79.853,79.815,0.03275376]
[1770835512035,1.31591438,79.853,79.82,4.82630791]
[1770835512444,30.0,79.836,79.82,4.82630791]
[1770835512638,30.0,79.836,79.821,0.03240644]
[1770835512951,1.31591438,79.859,79.83,4.82630791]
[1770835513158,1.33211827,79.858,79.82,48.67490618]
[1770835513354,1.33211827,79.858,79.82,17.35443513]
[1770835514858,30.0,79.835,79.82,17.35443513]
[1770835515852,1.33211827,79.834,79.811,43.85354002]
[1770835516154,30.0,79.833,79.811,43.85354002]
[1770835516961,31.33211827,79.833,79.811,12.52960118]
[1770835517146,30.0,79.833,79.811,12.52960118]
[1770835517345,1.33211827,79.832,79.791,12.53274178]
[1770835517557,1.33211827,79.828,79.791,12.53274178]
[1770835517744,1.33211827,79.826,79.781,12.53431268]
[1770835518261,1.33211827,79.826,79.79,4.82630791]
[1770835518440,30.0,79.819,79.79,4.82630791]
[1770835519148,1.33211827,79.818,79.79,4.82630791]
[1770835519350,1.33211827,79.818,79.791,12.53274178]
[1770835519560,30.0,79.816,79.791,12.53274178]
[1770835520952,1.33211827,79.815,79.791,12.53274178]
[1770835521157,30.0,79.813,79.791,12.53274178]
[1770835521863,1.33211827,79.813,79.791,12.53274178]
[1770835523564,1.33211827,79.819,79.791,43.86459624]
[1770835525858,1.33211827,79.819,79.781,43.87009438]
[1770835526978,1.33211827,79.819,79.791,12.53274178]
[1770835527160,1.33211827,79.819,79.791,43.86459624]
[1770835529556,47.96,79.835,79.8,4.8326165]
[1770835529870,1.33211827,79.857,79.82,4.8326165]
[1770835530063,1.33211827,79.886,79.83,4.8326165]
[1770835530260,1.33211827,79.886,79.84,4.8326165]
[1770835530460,1.33211827,79.881,79.84,4.8326165]
[1770835530975,1.33211827,79.881,79.831,17.52]
[1770835531154,1.33211827,79.881,79.83,4.8326165]
[1770835531661,12.51877816,79.88,79.831,43.84261752]
[1770835531853,1.33211827,79.879,79.831,43.84261752]
[1770835533289,1.33211827,79.877,79.831,43.84261752]
[1770835533949,4.61729252,79.863,79.782,112.80740015]
[1770835534145,1.33211827,79.854,79.8,4.8326165]
[1770835534972,1.33211827,79.854,79.81,4.8326165]
[1770835535349,1.33211827,79.852,79.811,12.52960118]
[1770835535545,4.61729252,79.87,79.811,12.52960118]
[1770835535546,1.33211827,79.86,79.83,4.8326165]
[1770835536568,47.9,79.877,79.84,4.8326165]
[1770835536569,1.33211827,79.876,79.84,4.8326165]
[1770835536874,1.33211827,79.899,79.87,4.8326165]
[1770835537253,1.33211827,79.898,79.871,12.5201888]
[1770835538255,1.33211827,79.893,79.824,4.61729252]
[1770835538567,1.33211827,79.893,79.86,4.8326165]
[1770835540156,1.33211827,79.891,79.861,12.52175655]
[1770835540373,1.33211827,79.891,79.85,4.8326165]
[1770835542175,47.86,79.901,79.85,4.8326165]
[1770835542176,1.33211827,79.889,79.85,4.8326165]
[1770835542362,1.33211827,79.881,79.83,4.8326165]
[1770835542575,1.33211827,79.873,79.83,4.8326165]
[1770835542879,49.19211827,79.873,79.83,4.8326165]
[1770835543177,1.33211827,79.872,79.83,4.8326165]
[1770835543679,1.33211827,79.87,79.831,12.52646215]
[1770835545681,1.33211827,79.868,79.831,12.52646215]
[1770835546882,1.33211827,79.866,79.83,12.92985315]
[1770835548789,1.33211827,79.866,79.84,12.92985315]
[1770835550497,1.33211827,79.866,79.841,12.52489322]
[1770835552065,1.33211827,79.866,79.83,12.92985315]
[1770835552671,47.94,79.872,79.82,65.38985315]
[1770835552672,1.33211827,79.861,79.82,65.38985315]
[1770835552872,5.36086188,79.845,79.8,12.92985315]
[1770835553073,1.33211827,79.841,79.79,12.92985315]
[1770835553286,1.33211827,79.841,79.789,52.42]
[1770835553287,1.33211827,79.841,79.8,12.92985315]
[1770835553574,1.33211827,79.841,79.81,12.92985315]
[1770835555402,1.33211827,79.839,79.81,12.92985315]
[1770835556099,1.33211827,79.839,79.811,12.52960118]
[1770835557398,1.33211827,79.839,79.82,12.92985315]
[1770835558594,1.26009952,79.837,79.75,1.37994427]
[1770835558777,1.26009952,79.837,79.791,1.17994427]
[1770835559098,1.26009952,79.837,79.801,1.17994427]
[1770835559686,1.26009952,79.837,79.81,14.10979742]
[1770835559885,1.26009952,79.837,79.81,1.17994427]
[1770835560180,1.26009952,79.837,79.8,12.92985315]
[1770835560181,1.26009952,79.835,79.803,1.17994427]
[1770835560596,1.26009952,79.833,79.794,1.17994427]
[1770835561482,1.26009952,79.842,79.811,1.17994427]
[1770835561679,1.26009952,79.86,79.831,1.17994427]
[1770835561879,12.52207014,79.859,79.831,1.17994427]
[1770835562207,13.78216966,79.859,79.831,1.17994427]
[1770835562374,1.26009952,79.858,79.821,13.70797574]
[1770835562578,1.26009952,79.858,79.822,1.17994427]
[1770835562797,1.26009952,79.858,79.821,12.52803147]
[1770835562798,1.26009952,79.858,79.831,1.17994427]
[1770835564284,1.26009952,79.858,79.822,1.17994427]
[1770835564709,47.96,79.869,79.816,12.52877159]
[1770835564710,5.36086188,79.855,79.816,12.52877159]
[1770835565002,1.26009952,79.854,79.811,1.17994427]
[1770835565193,1.26009952,79.848,79.796,1.17994427]
[1770835565393,1.26009952,79.84,79.796,1.17994427]
[1770835565583,47.96,79.847,79.796,1.17994427]
[1770835565584,1.26009952,79.834,79.796,1.17994427]
[1770835566184,1.26009952,79.834,79.795,12.53202659]
[1770835566911,1.26009952,79.832,79.801,1.17994427]
[1770835569084,1.26009952,79.83,79.801,1.17994427]
[1770835573311,12.52478001,79.842,79.811,1.17994427]
[1770835573606,13.78487953,79.842,79.811,1.17994427]
[1770835573908,1.26009952,79.841,79.811,1.17994427]
[1770835574992,1.26009952,79.839,79.803,1.17994427]
[1770835575198,1.26009952,79.833,79.803,1.17994427]
[1770835576003,1.26009952,79.833,79.798,1.17994427]
[1770835576686,5.36086188,79.836,79.8,4.83237674]
[1770835576890,1.26009952,79.844,79.82,6.01232101]
[1770835577111,12.52457948,79.843,79.82,1.17994427]
[1770835577309,1.26009952,79.842,79.82,1.17994427]
[1770835577494,1.26009952,79.842,79.813,1.17994427]
[1770835577895,1.26009952,79.852,79.813,1.17994427]
[1770835578210,1.26009952,79.86,79.831,1.17994427]
[1770835578909,1.26009952,79.868,79.841,1.17994427]
[1770835579214,7.8047748,79.886,79.851,1.17994427]
[1770835579404,48.02,79.891,79.842,12.52473635]
[1770835579405,1.26009952,79.893,79.861,1.17994427]
[1770835579713,12.51689781,79.892,79.861,1.17994427]
[1770835580015,1.26009952,79.891,79.861,1.17994427]
[1770835580396,1.26009952,79.891,79.854,1.17994427]
[1770835581418,1.25623,79.889,79.855,1.19548715]
[1770835581624,5.87352252,79.885,79.837,1.19548715]
[1770835581794,1.25623,79.882,79.84,14.12451802]
[1770835581999,1.25623,79.882,79.841,1.19548715]
[1770835582194,1.25623,79.882,79.851,1.19548715]
[1770835583194,1.25623,79.88,79.843,1.19548715]
[1770835583395,1.25623,79.874,79.834,1.19548715]
[1770835584006,5.36086188,79.867,79.823,12.5276139]
[1770835584208,1.25623,79.854,79.814,1.19548715]
[1770835584611,4.61729252,79.878,79.83,12.92903087]
[1770835584612,48.02,79.853,79.83,12.92903087]
[1770835584818,49.27623,79.853,79.83,12.92903087]
[1770835585011,48.02,79.853,79.83,12.92903087]
[1770835585320,1.25623,79.854,79.827,1.19548715]
[1770835585718,1.25623,79.854,79.817,1.19548715]
[1770835585911,12.52269738,79.855,79.821,1.19548715]
[1770835586114,13.77892738,79.855,79.821,1.19548715]
[1770835586313,1.25623,79.854,79.821,1.19548715]
[1770835587105,1.25623,79.854,79.82,12.92903087]
[1770835587106,12.52218882,79.859,79.831,1.1718079]
[1770835587727,1.20828094,79.863,79.831,1.1718079]
[1770835587909,1.20828094,79.863,79.821,1.1718079]
[1770835588316,1.20828094,79.863,79.83,12.92903087]
[1770835588515,1.20828094,79.863,79.827,1.1718079]
[1770835589321,1.20828094,79.863,79.831,1.1718079]
[1770835589624,1.20828094,79.87,79.841,1.1718079]
[1770835590028,12.51924834,79.877,79.842,1.1718079]
[1770835590235,12.51924834,79.877,79.851,1.1718079]
[1770835590729,1.20828094,79.876,79.851,1.1718079]
[1770835591826,1.20828094,79.874,79.842,1.1718079]
[1770835592636,48.0,79.887,79.861,1.1718079]
[1770835592809,12.51783791,79.886,79.861,1.1718079]
[1770835593015,1.20828094,79.885,79.861,1.1718079]
[1770835594334,12.51815131,79.884,79.861,1.1718079]
[1770835595044,4.07800899,79.902,79.836,51.92]
[1770835595336,4.07800899,79.902,79.781,102.3]
[1770835595337,0.1,79.96,79.893,4.61729252]
[1770835595548,0.1,79.96,79.94,12.93324065]
[1770835595714,1.28667845,80.013,79.963,4.61729252]
[1770835596029,1.28667845,80.03,80.0,12.93324065]
[1770835596236,31.22366661,80.068,80.01,12.93324065]
[1770835596237,1.28667845,80.04,80.01,12.93324065]
[1770835596428,1.28667845,80.04,80.011,12.49828148]
[1770835596634,1e-08,80.031,80.02,12.93324065]
[1770835597122,1.28667846,80.031,80.011,12.49828148]
[1770835597530,1.28667846,80.031,79.999,12.50015625]
[1770835597736,1.28667846,80.031,79.98,12.93324065]
[1770835597737,1.28667845,80.029,79.98,12.93324065]
[1770835598034,1.28667845,80.029,79.932,50.04235509]
[1770835598035,4.61729252,80.022,79.965,50.28]
[1770835598241,1.28667845,80.011,79.953,43.77571822]
[1770835598421,1.28667845,80.009,79.953,43.77571822]
[1770835598621,1.28667845,80.001,79.947,51.86]
[1770835598934,1.28667845,80.001,79.948,12.50813028]
[1770835599115,5.36086188,80.0,79.947,51.86]
[1770835599441,43.74453192,80.01,79.924,51.84]
[1770835599442,1.28667845,79.981,79.924,51.84]
[1770835600640,1.28667845,79.98,79.922,51.84]
[1770835601314,1.28667845,79.98,79.92,56.7268299]
[1770835601520,1.28667845,79.98,79.94,12.93324065]
[1770835602015,13.78339806,80.021,79.96,12.93324065]
[1770835602229,13.78339806,80.021,79.95,12.93324065]
[1770835602230,1.28667845,80.017,79.95,12.93324065]
[1770835602745,1.28667845,80.001,79.951,12.50766094]
[1770835602919,1.28667845,80.001,79.946,12.50841013]
[1770835603742,1.28667845,80.001,79.95,12.93324065]
[1770835603925,1.28667845,80.001,79.946,12.50841013]
[1770835604755,1.28667845,80.001,79.94,64.79324065]
[1770835604756,1.28667845,79.999,79.942,31.27267268]
[1770835607038,1.28667845,79.997,79.942,31.27267268]
[1770835607323,1.28667845,79.981,79.922,51.84]
[1770835607851,1.28667845,79.975,79.922,51.84]
[1770835608028,1.28667845,79.971,79.922,51.84]
[1770835608229,1.28667845,79.971,79.91,12.93324065]
[1770835608423,1.28667845,79.971,79.92,12.93324065]
[1770835608624,1.28667845,79.971,79.93,12.93324065]
[1770835608823,1.28667845,79.971,79.916,4.61729252]
[1770835608824,1.28667845,79.99,79.94,12.93324065]
[1770835609026,1.28667845,79.988,79.941,12.50922555]
[1770835609226,1.28667845,79.988,79.941,43.78228943]
[1770835609953,1.28667845,79.988,79.95,12.93324065]
[1770835610257,1.28667845,80.009,79.951,51.82]
[1770835610459,1.28667845,80.009,79.96,12.93324065]
[1770835611054,12.49875012,80.008,79.961,12.50609672]
[1770835611342,1.28667845,80.007,79.961,12.50609672]
[1770835612246,1.28667845,80.007,79.97,12.93324065]
[1770835612644,1.28667845,80.025,79.98,12.93324065]
[1770835613145,1.28667845,80.021,79.96,12.93324065]
[1770835613450,1.28667845,80.021,79.961,51.84]
[1770835615141,1.28667845,80.021,79.97,12.93324065]
[1770835615331,1.28667845,80.019,79.971,12.50453289]
[1770835615645,1.28667845,80.019,79.98,12.93324065]
[1770835615875,1.28667845,80.019,79.971,12.50453289]
[1770835615876,1.28667845,80.028,79.99,12.93324065]
[1770835616028,1e-08,80.031,80.0,12.93324065]
[1770835616029,12.49526422,80.031,80.0,12.93324065]
[1770835616342,1.28667845,80.03,79.982,51.82]
[1770835616931,1.28667845,80.03,79.974,51.82]
[1770835617333,1.28667845,80.028,79.98,12.93324065]
[1770835617549,1.28667845,80.028,79.975,64.32390747]
[1770835617733,1.28667845,80.028,79.98,12.93324065]
[1770835618925,1.28667845,80.028,79.975,95.58367614]
[1770835619130,1.28667845,80.028,79.99,12.93324065]
[1770835619333,13.78246112,80.027,79.99,12.93324065]
[1770835619532,1.28667845,80.026,79.99,12.93324065]
[1770835619736,1.28667845,80.026,79.976,12.50375112]
[1770835621054,1e-08,80.031,80.0,12.93324065]
[1770835621233,1e-08,80.031,80.02,12.93324065]
[1770835621652,1e-08,80.031,80.01,12.93324065]
[1770835621963,1e-08,80.031,80.02,12.93324065]
[1770835622332,1e-08,80.031,80.013,51.82]
[1770835622842,1e-08,80.031,80.02,12.93324065]
[1770835623030,1e-08,80.031,80.001,12.49984375]
[1770835623235,1e-08,80.031,80.02,12.93324065]
[1770835624236,1e-08,80.031,80.013,51.82]
[1770835625745,1e-08,80.031,80.02,12.93324065]
[1770835625945,1e-08,80.031,80.014,12.49781288]
[1770835626252,1e-08,80.031,80.02,12.93324065]
[1770835627558,1e-08,80.031,80.015,51.88]
[1770835627939,1e-08,80.031,80.02,12.93324065]
[1770835628861,1e-08,80.031,80.015,51.88]
[1770835629359,1e-08,80.031,80.013,51.9]
[1770835629661,1e-08,80.031,80.013,12.49789062]
[1770835629862,1e-08,80.031,80.014,51.92]
[1770835631348,1e-08,80.031,79.998,12.5003125]
[1770835631659,1e-08,80.031,79.999,51.94]
[1770835631853,1e-08,80.031,80.0,12.5]
[1770835632041,1e-08,80.031,80.0,25.43324065]
[1770835632359,1e-08,80.031,79.999,51.94]
[1770835632558,1e-08,80.031,79.99,12.93324065]
[1770835632739,1.28667845,80.026,79.976,17.48]
[1770835633740,43.73633239,80.025,79.977,12.50359478]
[1770835633947,1.28667845,80.024,79.977,12.50359478]
[1770835634155,1.28667845,80.024,79.976,17.48]
[1770835634156,1.28667845,80.024,79.98,12.93324065]
[1770835634351,1.28667845,80.024,79.976,61.24298749]
[1770835634352,1.28667845,80.024,79.976,29.98360968]
[1770835634843,1.28667845,80.024,79.98,12.93324065]
[1770835635763,13.78308573,80.023,79.99,25.43471343]
[1770835636241,13.78308573,80.023,79.991,12.5014064]
[1770835637256,1.28667845,80.022,79.991,12.5014064]
[1770835639367,1.28667845,80.02,79.985,12.50234418]
[1770835639553,1.28667845,80.02,79.984,51.9]
[1770835640148,1.28667845,80.016,79.96,12.93324065]
[1770835640446,1.28667845,80.006,79.956,12.50687878]
[1770835640877,1.28667845,80.006,79.956,43.77407573]
[1770835641162,1.28667845,80.018,79.981,12.50296945]
[1770835641546,12.49703195,80.019,79.99,12.93324065]
[1770835641866,1.28667845,80.034,79.99,12.93324065]
[1770835642069,1.28667845,80.055,80.02,12.93324065]
[1770835642269,12.49054705,80.061,80.02,64.85324065]
[1770835642489,1.28667845,80.06,80.02,64.85324065]
[1770835642774,1.28667845,80.06,80.014,51.94]
[1770835643361,1.28667845,80.058,80.015,12.49765668]
[1770835643956,1.28667845,80.058,80.02,12.93324065]
[1770835644175,1.28667845,80.067,80.03,12.93324065]
[1770835644567,1.28667845,80.089,80.05,12.93324065]
[1770835645378,1.28667845,80.087,80.05,12.93324065]
[1770835645576,12.48657692,80.086,80.051,12.49203632]
[1770835645777,13.77325537,80.086,80.051,12.49203632]
[1770835646077,1.28667845,80.085,80.051,12.49203632]
[1770835646474,1.28667845,80.085,80.04,12.93324065]
[1770835646786,1.28667845,80.079,80.013,4.61729252]
[1770835646962,1.28667845,80.075,80.02,12.93324065]
[1770835647379,1.28667845,80.075,80.03,12.93324065]
[1770835647561,12.48844818,80.074,80.041,12.49359703]
[1770835647761,12.48735655,80.081,80.05,12.93324065]
[1770835648477,1.28667845,80.08,80.041,12.49359703]
[1770835648682,1.28667845,80.08,80.02,12.93324065]
[1770835648855,1.28667845,80.08,80.021,83.20147552]
[1770835649051,1.28667845,80.08,80.03,12.86677075]
[1770835649660,1.28667845,80.078,80.031,12.49515812]
[1770835649975,1.28667845,80.078,80.022,51.96]
[1770835650170,1.28667845,80.078,80.02,12.86677075]
[1770835650171,1.28667845,80.076,80.023,12.49640728]
[1770835651883,1.28667845,80.074,80.014,31.24422747]
[1770835652182,1.28667845,80.074,80.02,12.86677075]
[1770835652374,1.28667845,80.074,80.014,31.24422747]
[1770835652771,1.28667845,80.074,80.02,12.86677075]
[1770835652977,1.28667845,80.074,80.03,12.86677075]
[1770835653486,1.28667845,80.072,80.02,12.86677075]
[1770835654690,47.26,80.073,80.03,12.86677075]
[1770835654691,1.28667845,80.07,80.03,12.86677075]
[1770835654879,1.28667845,80.07,80.02,12.86677075]
[1770835655277,1.28667845,80.07,80.03,12.86677075]
[1770835655786,1.28667845,80.07,80.02,12.86677075]
[1770835656493,1.28667845,80.07,80.03,12.86677075]
[1770835657181,12.48922804,80.069,80.031,12.49515812]
[1770835657494,47.26,80.073,80.04,12.86677075]
[1770835658092,1.28667845,80.072,80.031,12.49515812]
[1770835658283,1.28667845,80.072,80.022,12.49641495]
[1770835659192,1.28667845,80.07,80.022,12.49641495]
[1770835660303,1.28667845,80.07,80.02,12.86677075]
[1770835660792,1.28667845,80.07,80.03,12.86677075]
[1770835661181,1.28667845,80.068,80.02,12.86677075]
[1770835661893,1.28667845,80.068,80.016,12.49750049]
[1770835662498,1.28667845,80.066,80.016,12.49750049]
[1770835662707,1.28667845,80.066,80.014,51.8]
[1770835662997,43.71229814,80.069,79.97,12.86677075]
[1770835662998,4.61729252,80.046,79.97,12.86677075]
[1770835663290,1.28667845,80.04,79.971,12.50453289]
[1770835663492,1.28667845,80.04,79.971,43.76586512]
[1770835664189,1.28667845,80.029,79.971,43.76586512]
[1770835665101,1.28667845,80.027,79.971,43.76586512]
[1770835665277,1.28667845,80.018,79.971,43.76586512]
[1770835666399,1.28667845,80.014,79.971,43.76586512]
[1770835667096,1.28667845,80.014,79.971,12.50453289]
[1770835667300,13.78589724,80.005,79.97,12.86677075]
[1770835667491,1.28667845,80.004,79.97,12.86677075]
[1770835668098,1.28667845,80.004,79.967,12.50515837]
[1770835668297,1.28667845,79.999,79.967,12.50515837]
[1770835668694,1.28667845,79.999,79.961,12.50609672]
[1770835668905,1.28667845,79.997,79.961,12.50609672]
[1770835669276,30.0,79.988,79.952,31.26847008]
[1770835669873,31.28667845,79.988,79.952,31.26847008]
[1770835672293,1.28667845,79.986,79.951,12.50766094]